bitfinex/quotes_ETHUSD_20241108
["timestamp","ask_amount","ask_price","bid_price","bid_amount"]
[1731103425161,0.7561,2947.8,2946.8,3.0]
[1731103425560,0.7561,2947.8,2946.9,1.357033]
[1731103426296,0.7561,2947.8,2946.8,3.0]
[1731103426796,0.7561,2947.8,2946.7,0.8017]
[1731103426998,0.7561,2947.8,2946.7,3.8017]
[1731103428061,0.7561,2947.8,2946.8,0.06785428]
[1731103428881,0.7561,2947.8,2946.7,3.8017]
[1731103429310,0.7561,2947.8,2946.9,1.49085668]
[1731103429597,0.136343,2948.2,2947.7,0.8017]
[1731103429816,0.136343,2948.2,2947.6,4.49085668]
[1731103429817,0.7561,2949.3,2948.2,3.0]
[1731103429985,0.7561,2949.3,2948.6,1.49085668]
[1731103430177,0.7561,2949.3,2948.1,0.8017]
[1731103430374,0.7561,2949.3,2948.2,0.61780949]
[1731103430618,0.7561,2949.3,2948.2,3.0]
[1731103430877,0.7682,2948.7,2948.2,1.49085668]
[1731103431405,0.7682,2948.7,2948.3,0.06782168]
[1731103431781,0.0121,2948.7,2948.3,0.06782168]
[1731103431993,0.0121,2948.7,2948.4,4.03308043]
[1731103433012,0.0121,2948.7,2948.4,3.22678043]
[1731103433305,0.0121,2948.7,2948.5,0.32267804]
[1731103433513,0.8014,2948.7,2948.6,0.06782071]
[1731103433734,0.8014,2948.7,2948.3,0.06782227]
[1731103437098,0.0121,2948.7,2948.4,3.98988043]
[1731103437292,0.0121,2948.7,2948.5,0.06781551]
[1731103437718,0.0121,2948.7,2948.3,0.0678191]
[1731103437930,0.0121,2948.7,2948.1,3.0]
[1731103438291,0.0121,2948.7,2948.2,0.06782448]
[1731103439760,0.0121,2948.7,2948.1,3.0]
[1731103440025,0.0121,2948.7,2948.2,0.06782077]
[1731103440217,0.0121,2948.7,2948.1,3.0]
[1731103440585,0.0121,2948.7,2948.2,0.06782199]
[1731103440998,0.0121,2948.7,2948.1,3.0]
[1731103441587,0.0121,2948.7,2948.2,0.06782211]
[1731103441921,0.0121,2948.7,2948.3,0.30678221]
[1731103442124,0.0121,2948.7,2948.4,0.06782139]
[1731103443158,0.0121,2948.7,2948.3,0.30678221]
[1731103443512,0.00309964,2948.7,2948.4,0.06782153]
[1731103445546,0.00309964,2948.7,2948.3,0.30678221]
[1731103446420,0.00309964,2948.7,2948.4,0.0678222]
[1731103446803,0.00309964,2948.7,2948.3,0.30678221]
[1731103447206,0.00309964,2948.7,2948.4,0.06782375]
[1731103448248,0.00309964,2948.7,2948.3,0.30678221]
[1731103448947,0.00309964,2948.7,2948.4,0.06782414]
[1731103450050,0.8142,2948.6,2948.4,0.06782414]
[1731103450455,0.8142,2948.6,2948.3,0.30678221]
[1731103450634,0.8142,2948.6,2948.1,3.0]
[1731103450635,0.8142,2948.6,2948.2,0.06783058]
[1731103450820,0.8142,2948.6,2947.9,0.06783103]
[1731103451714,0.8142,2948.6,2948.0,0.06783107]
[1731103451916,0.8142,2948.6,2947.8,0.06783163]
[1731103452166,0.8142,2948.6,2947.8,3.06783163]
[1731103453750,0.00309964,2948.7,2948.4,3.22678043]
[1731103453949,0.00309964,2948.7,2948.5,3.7762]
[1731103454158,0.00309964,2948.7,2948.5,3.84400978]
[1731103458064,5.0,2950.0,2948.7,0.55]
[1731103458219,0.7909,2949.9,2949.0,3.0]
[1731103458426,0.7909,2949.9,2948.8,3.0]
[1731103459047,0.7909,2949.9,2948.9,0.06780996]
[1731103459275,0.7909,2949.9,2948.5,3.0]
[1731103459276,0.7909,2949.9,2948.6,0.06781018]
[1731103459759,0.7909,2949.9,2948.8,3.0]
[1731103459931,0.7909,2949.9,2948.7,3.22678043]
[1731103460262,0.7909,2949.7,2948.8,0.06781025]
[1731103463557,0.7909,2949.7,2949.0,3.22678043]
[1731103463934,0.7909,2949.7,2949.1,0.06780043]
[1731103464163,5.0,2950.0,2949.1,0.06780043]
[1731103464375,5.7909,2950.0,2949.3,3.22678043]
[1731103464535,5.7909,2950.0,2949.4,0.32267804]
[1731103466777,5.7909,2950.0,2949.1,3.0]
[1731103467781,5.7909,2950.0,2949.2,0.06779502]
[1731103467975,5.7909,2950.0,2949.1,3.0]
[1731103468285,5.0,2950.0,2949.9,3.22678043]
[1731103468578,5.0,2950.0,2949.9,7.02848043]
[1731103469083,5.0,2950.0,2949.7,3.0]
[1731103469235,5.0,2950.0,2949.8,0.06779034]
[1731103469436,5.0,2950.0,2949.9,7.02848043]
[1731103469841,5.0,2950.0,2949.9,7.57848043]
[1731103470370,5.0,2950.0,2949.9,8.43492824]
[1731103471536,5.0,2950.0,2949.9,7.57848043]
[1731103472297,5.0,2950.0,2949.8,0.24826059]
[1731103472572,5.0,2950.0,2949.7,3.0]
[1731103472781,5.0,2950.0,2949.9,6.22678043]
[1731103474400,5.0,2950.0,2949.9,7.59768043]
[1731103474592,3.11840665,2950.0,2949.9,7.59768043]
[1731103475872,3.11840665,2950.0,2949.9,7.04768043]
[1731103477721,3.11840665,2950.0,2949.9,3.8209]
[1731103477993,3.11840665,2950.0,2949.7,3.0]
[1731103478301,3.11840665,2950.0,2949.9,6.22678043]
[1731103484286,2.89349662,2950.0,2949.9,6.22678043]
[1731103485213,2.89349662,2950.0,2949.9,6.99478043]
[1731103486416,2.89349662,2950.0,2949.9,7.23965929]
[1731103486891,0.136343,2951.1,2950.8,0.768]
[1731103487225,0.8095,2951.9,2950.8,0.768]
[1731103487226,0.8095,2951.9,2951.1,3.0]
[1731103487510,0.8095,2951.9,2951.2,0.06774969]
[1731103487722,0.7095,2951.9,2951.1,3.0]
[1731103488717,0.7095,2951.9,2951.0,3.46757505]
[1731103489015,0.7095,2951.9,2951.1,0.7095]
[1731103490845,0.7095,2951.9,2951.0,3.0]
[1731103491009,0.7095,2951.9,2951.1,1.355045]
[1731103491349,0.7095,2951.9,2951.0,3.0]
[1731103491529,0.7095,2951.9,2950.9,3.22678043]
[1731103492139,0.7095,2951.9,2951.0,0.55]
[1731103492640,0.7095,2951.9,2950.9,4.58189143]
[1731103493537,0.7095,2951.9,2950.9,1.355111]
[1731103493746,0.7095,2951.9,2950.7,3.0]
[1731103494035,0.7095,2951.9,2950.8,1.355174]
[1731103494407,0.7095,2951.9,2950.7,3.0]
[1731103494607,0.7095,2951.9,2950.7,1.35522]
[1731103495025,0.7095,2951.9,2950.6,3.22678043]
[1731103495204,0.7095,2951.9,2950.6,3.93628043]
[1731103495743,0.7095,2951.9,2950.6,3.22678043]
[1731103496041,0.7095,2951.9,2950.7,0.06776357]
[1731103497141,0.7095,2951.9,2950.5,0.06776863]
[1731103497334,0.7195,2951.9,2950.5,0.77726863]
[1731103499259,0.7095,2951.9,2950.6,3.22678043]
[1731103499463,0.7095,2951.9,2950.9,3.22678043]
[1731103499647,0.7095,2951.9,2951.0,0.06775846]
[1731103499822,0.7095,2951.9,2950.9,3.22678043]
[1731103500552,0.7095,2951.9,2950.6,0.55]
[1731103500754,0.7095,2951.9,2950.5,0.7095]
[1731103501057,0.7095,2951.9,2950.6,3.29454597]
[1731103503663,0.7095,2951.9,2950.6,3.22678043]
[1731103503870,0.7095,2951.9,2950.5,0.7095]
[1731103504069,0.7095,2951.9,2950.4,3.0]
[1731103504070,0.7195,2951.9,2950.4,3.0]
[1731103504576,0.7095,2951.9,2950.5,0.06776952]
[1731103504866,0.7095,2951.9,2950.6,3.77678043]
[1731103505462,0.7095,2951.9,2950.6,3.22678043]
[1731103505780,0.7095,2951.9,2950.7,0.06776351]
[1731103506072,0.7095,2951.9,2950.4,3.0]
[1731103506228,0.7095,2951.9,2950.5,0.06776645]
[1731103506426,0.7095,2951.9,2950.6,3.22678043]
[1731103507041,0.7095,2951.9,2950.4,3.0]
[1731103507236,0.7195,2951.9,2950.3,4.355379]
[1731103507536,0.7195,2951.9,2950.2,3.22678043]
[1731103507537,0.7295,2951.9,2950.2,3.22678043]
[1731103507739,0.7954,2951.6,2950.2,3.22678043]
[1731103507956,0.7954,2951.6,2950.1,1.355477]
[1731103508134,0.7954,2951.6,2950.2,0.06777518]
[1731103508342,0.7954,2951.6,2950.3,3.22678043]
[1731103508878,0.7954,2951.6,2950.0,3.22678043]
[1731103509835,0.7954,2951.6,2950.1,0.06777523]
[1731103510036,0.7954,2951.6,2950.0,3.22678043]
[1731103513288,0.7954,2951.6,2950.1,0.06777607]
[1731103513463,0.7954,2951.6,2950.0,3.22678043]
[1731103514352,0.8054,2951.6,2950.4,3.22678043]
[1731103515056,0.7954,2951.6,2950.1,3.22678043]
[1731103515267,0.8054,2951.6,2950.1,3.22678043]
[1731103515451,0.8054,2951.6,2950.2,0.06777514]
[1731103516292,0.8054,2951.6,2950.4,3.22678043]
[1731103516451,0.7954,2951.6,2950.5,0.06777055]
[1731103520383,0.7954,2951.6,2950.4,3.22678043]
[1731103520688,0.7954,2951.6,2950.5,0.06776893]
[1731103522976,0.7954,2951.6,2950.4,3.22678043]
[1731103523288,0.7954,2951.6,2950.5,0.06776897]
[1731103524552,0.7954,2951.6,2950.8,3.22678043]
[1731103524758,0.7954,2951.6,2950.9,0.06776051]
[1731103525290,0.7954,2951.6,2950.8,3.22678043]
[1731103525496,0.7954,2951.6,2950.9,0.06776052]
[1731103526457,0.7954,2951.6,2950.8,3.22678043]
[1731103526776,0.7954,2951.6,2950.9,0.06776054]
[1731103527469,0.7954,2951.6,2951.1,3.22678043]
[1731103528194,0.7954,2951.6,2950.8,3.22678043]
[1731103530179,0.7954,2951.6,2950.5,4.73526907]
[1731103530180,0.7954,2951.6,2950.5,3.68865321]
[1731103530381,0.7954,2951.6,2950.5,3.22678043]
[1731103532140,0.7954,2951.6,2950.6,0.06777225]
[1731103532622,0.6954,2951.6,2950.6,0.06777225]
[1731103541341,0.6954,2951.6,2950.7,1.486973]
[1731103541642,0.6954,2951.6,2950.8,0.06777125]
[1731103542346,0.6954,2951.6,2950.7,1.486973]
[1731103542521,0.6954,2951.6,2950.8,0.06777126]
[1731103548434,0.6954,2951.6,2950.7,1.486973]
[1731103549642,0.6954,2951.6,2950.4,0.75642468]
[1731103549850,0.6954,2951.6,2950.7,1.486973]
[1731103554545,0.6954,2951.6,2951.0,1.486973]
[1731103554783,0.6954,2951.6,2951.1,0.06776228]
[1731103556186,0.6954,2951.6,2951.0,1.486973]
[1731103556345,0.6954,2951.6,2951.1,0.06776229]
[1731103559490,0.35332136,2952.7,2951.3,1.486973]
[1731103559491,0.7649,2952.2,2951.3,1.486973]
[1731103559647,0.7649,2952.2,2951.4,0.06775727]
[1731103564099,0.7649,2952.2,2951.7,1.486973]
[1731103564289,0.7649,2952.2,2951.9,1.486973]
[1731103564921,0.7649,2952.2,2951.7,1.486973]
[1731103565624,0.7649,2952.2,2952.1,1.486973]
[1731103565843,0.7649,2952.4,2952.1,1.486973]
[1731103566121,0.7649,2952.4,2951.8,1.486973]
[1731103567080,0.7649,2952.4,2951.8,2.311673]
[1731103567601,0.7649,2952.4,2951.8,1.486973]
[1731103573201,0.7649,2952.4,2952.0,1.486973]
[1731103574934,0.7649,2952.4,2951.5,0.8247]
[1731103575231,0.7649,2952.4,2951.8,1.486973]
[1731103584701,0.7649,2952.4,2951.7,1.354921]
[1731103585030,0.7649,2952.4,2952.0,1.486973]
[1731103586315,0.7649,2952.4,2951.8,1.486973]
[1731103587338,0.7649,2952.4,2952.2,1.486973]
[1731103587639,3.6099738,2953.4,2952.3,0.06774]
[1731103587640,0.7525,2953.4,2952.3,0.06774]
[1731103587839,0.7525,2953.3,2952.4,1.486973]
[1731103588046,0.7625,2953.3,2952.2,1.486973]
[1731103588926,2.249473,2953.3,2952.0,2.257173]
[1731103589135,0.7525,2953.2,2952.0,2.257173]
[1731103589305,0.7525,2953.0,2952.0,2.257173]
[1731103589851,0.7525,2953.0,2951.5,0.7702]
[1731103590088,0.7525,2953.0,2952.0,1.486973]
[1731103593507,0.7525,2953.0,2951.7,1.486973]
[1731103596646,0.7584,2952.6,2951.1,2.157926]
[1731103596895,0.7584,2952.4,2951.2,1.486973]
[1731103597518,0.7584,2952.4,2951.4,1.486973]
[1731103598486,0.7584,2952.4,2951.3,1.486973]
[1731103599671,0.7584,2951.8,2950.6,0.803]
[1731103599826,0.7584,2951.8,2950.5,1.486973]
[1731103600032,0.7584,2951.8,2950.7,1.486973]
[1731103600953,0.7584,2951.8,2950.6,2.842348]
[1731103601405,0.7584,2951.8,2950.6,1.355375]
[1731103601696,0.7584,2951.8,2950.3,4.02526013]
[1731103601984,0.7584,2951.8,2950.4,1.355421]
[1731103603555,0.7584,2951.8,2950.7,0.7988]
[1731103603757,0.7584,2951.8,2950.9,3.22226013]
[1731103603956,0.7584,2951.8,2951.0,0.06776325]
[1731103604645,0.7584,2951.8,2950.9,3.22226013]
[1731103606013,0.7584,2951.8,2950.7,0.7988]
[1731103607020,0.7584,2951.8,2950.3,7.02106013]
[1731103607222,0.7584,2951.8,2950.3,0.7988]
[1731103607388,0.8052,2951.7,2950.1,0.68865321]
[1731103607569,0.8052,2951.7,2950.2,0.06777577]
[1731103607775,0.8052,2951.7,2950.1,0.06778094]
[1731103608166,0.8052,2951.7,2950.0,0.7988]
[1731103608699,0.8052,2951.7,2949.9,3.22226013]
[1731103608907,0.01,2951.3,2950.0,0.06778096]
[1731103609106,0.01,2951.3,2949.9,3.22226013]
[1731103609107,0.7852,2951.2,2949.9,3.22226013]
[1731103609421,0.7852,2951.2,2949.6,1.65891944]
[1731103609422,0.7852,2951.2,2949.6,0.7988]
[1731103609754,0.7852,2951.2,2949.3,1.99712492]
[1731103609755,0.7952,2951.1,2949.3,1.86100965]
[1731103609909,0.7952,2951.1,2949.4,3.22226013]
[1731103610277,0.7852,2950.8,2949.4,3.22226013]
[1731103610482,0.7852,2950.8,2949.5,0.06779681]
[1731103611073,0.7852,2950.8,2949.7,3.22226013]
[1731103611267,0.7852,2950.8,2949.8,0.06778822]
[1731103612571,0.7852,2950.8,2949.8,3.06778822]
[1731103613326,0.7852,2950.8,2949.8,3.0]
[1731103613636,0.7852,2950.8,2949.5,0.7988]
[1731103613847,0.7852,2950.8,2949.6,0.06779166]
[1731103614221,0.7852,2950.8,2949.5,0.06779777]
[1731103614738,0.7952,2950.8,2949.5,0.06779777]
[1731103614954,0.7952,2950.8,2949.1,4.01526013]
[1731103615535,0.8133,2950.5,2949.2,0.06780046]
[1731103617522,0.8133,2950.5,2949.1,3.22226013]
[1731103617707,0.8133,2950.5,2949.2,0.06780644]
[1731103618415,0.8133,2950.5,2949.1,3.22226013]
[1731103618742,0.8133,2950.5,2949.2,0.06780644]
[1731103619726,0.8133,2950.5,2948.8,0.793]
[1731103620042,0.01,2950.4,2948.9,3.22226013]
[1731103620278,4.04376013,2950.2,2948.5,3.22226013]
[1731103620462,0.8215,2950.1,2948.5,3.22226013]
[1731103621771,0.8215,2950.1,2948.6,3.0]
[1731103622134,0.8215,2950.0,2948.6,3.0]
[1731103622336,0.8215,2949.8,2948.6,3.0]
[1731103623287,0.8215,2949.8,2948.2,0.8272]
[1731103623288,0.8215,2949.8,2948.2,4.04946013]
[1731103623445,0.8215,2949.8,2948.2,3.22226013]
[1731103623646,0.8215,2949.8,2948.5,3.22226013]
[1731103623875,0.8215,2949.8,2948.6,0.0678214]
[1731103624786,0.8315,2949.7,2947.9,3.22226013]
[1731103624998,0.8215,2949.5,2948.3,3.0]
[1731103625160,0.8215,2949.5,2948.3,3.06782663]
[1731103625694,0.8215,2949.5,2948.5,3.22226013]
[1731103625889,0.8215,2949.5,2948.6,0.06781909]
[1731103627258,0.8215,2949.5,2948.3,3.0]
[1731103628570,0.8215,2949.5,2948.4,0.06782163]
[1731103629467,0.8215,2949.5,2948.3,3.0]
[1731103629468,0.8215,2949.5,2948.5,3.22226013]
[1731103629674,0.8215,2949.5,2948.8,3.22226013]
[1731103630085,0.8215,2949.5,2948.9,0.06781537]
[1731103630293,0.8215,2949.5,2948.8,3.2900755]
[1731103630510,0.8215,2949.5,2948.3,3.0]
[1731103630792,0.8215,2949.5,2948.5,0.06781537]
[1731103631569,0.8215,2949.5,2948.4,0.0678232]
[1731103633265,0.8215,2949.5,2948.5,3.22226013]
[1731103633476,0.8215,2949.5,2948.8,3.22226013]
[1731103633708,0.8215,2949.5,2948.9,0.06781236]
[1731103635972,0.7572,2949.7,2949.1,3.22226013]
[1731103636221,0.01,2951.1,2949.4,3.22226013]
[1731103636376,0.7572,2951.0,2949.5,0.06779589]
[1731103636577,0.7572,2951.0,2949.7,3.22226013]
[1731103636848,0.7572,2951.0,2949.9,0.55]
[1731103637001,0.7572,2951.0,2950.3,3.22226013]
[1731103637215,0.7572,2951.0,2950.0,3.22226013]
[1731103637521,0.7572,2951.0,2950.1,3.0]
[1731103637668,0.7572,2951.0,2950.2,0.06777864]
[1731103638272,0.7572,2951.0,2950.2,0.82817864]
[1731103638501,0.7572,2951.0,2950.2,0.7604]
[1731103639303,0.7572,2951.0,2950.1,3.0]
[1731103639685,0.7572,2951.0,2950.2,0.06777498]
[1731103639880,0.7572,2951.0,2950.1,3.0]
[1731103641482,0.7572,2951.0,2949.9,0.55]
[1731103642085,0.7572,2951.0,2950.0,3.22226013]
[1731103642286,0.7572,2951.0,2950.1,3.0]
[1731103643593,0.7572,2951.0,2950.2,0.06777824]
[1731103645042,0.7572,2951.0,2950.3,3.22226013]
[1731103645185,0.7572,2951.0,2950.4,0.0677746]
[1731103651103,0.74820665,2951.0,2950.4,0.0677746]
[1731103651303,0.74820665,2951.0,2950.1,3.0]
[1731103651832,0.74820665,2951.0,2949.7,3.22226013]
[1731103652004,0.74820665,2951.0,2949.8,0.55]
[1731103653088,0.74820665,2951.0,2949.8,3.55]
[1731103654318,0.74820665,2951.0,2949.9,0.06778092]
[1731103654523,0.74820665,2951.0,2949.8,3.55]
[1731103655657,0.74820665,2951.0,2949.7,3.22226013]
[1731103656840,0.74820665,2951.0,2949.4,3.22226013]
[1731103656992,0.37582067,2950.9,2949.4,3.22226013]
[1731103657195,0.7633,2950.8,2949.4,3.22226013]
[1731103657502,0.7633,2950.8,2949.5,0.06779518]
[1731103660266,0.7633,2950.8,2949.1,3.22226013]
[1731103660566,0.7733,2950.8,2949.1,3.22226013]
[1731103660952,0.7633,2950.6,2949.1,3.22226013]
[1731103661140,0.7633,2950.6,2948.9,3.0]
[1731103661340,0.7633,2950.4,2948.8,3.22226013]
[1731103661550,0.7733,2950.4,2948.6,1.06249939]
[1731103661754,0.7633,2950.2,2948.6,1.06249939]
[1731103662076,0.7633,2950.0,2948.6,1.06249939]
[1731103662280,0.7633,2950.0,2948.5,3.22226013]
[1731103662571,0.7633,2950.0,2948.7,0.06781218]
[1731103662818,0.7633,2950.0,2948.5,3.22226013]
[1731103663069,0.7633,2949.8,2948.2,3.22226013]
[1731103663271,0.7633,2949.6,2948.2,3.22226013]
[1731103664482,0.7633,2949.6,2948.3,3.0]
[1731103667344,0.7633,2949.6,2948.2,3.22226013]
[1731103668586,0.7633,2949.6,2947.9,3.0]
[1731103668587,0.7733,2949.6,2947.9,6.22226013]
[1731103668788,0.7633,2949.5,2948.0,3.06782651]
[1731103669111,0.7633,2949.4,2948.0,3.06782651]
[1731103669278,0.7633,2949.4,2948.0,0.06782651]
[1731103669476,0.7633,2949.4,2947.9,3.22226013]
[1731103670698,0.7633,2949.4,2948.0,0.06782943]
[1731103671058,0.7633,2949.4,2947.9,3.22226013]
[1731103671353,3.22226013,2949.4,2947.9,3.22226013]
[1731103671558,0.7921,2949.2,2947.9,3.22226013]
[1731103672348,0.7921,2949.2,2948.0,0.06783284]
[1731103673227,0.7921,2949.2,2947.9,3.22226013]
[1731103673736,0.7921,2949.2,2947.7,3.0]
[1731103674028,0.01,2949.1,2947.6,4.57884513]
[1731103674236,0.7921,2948.9,2947.6,1.356585]
[1731103674443,0.7921,2948.9,2947.7,0.0678426]
[1731103674828,0.7921,2948.9,2947.6,3.22226013]
[1731103675333,0.7921,2948.9,2947.9,3.22226013]
[1731103675499,0.7921,2948.9,2947.7,0.06783731]
[1731103675500,0.7921,2948.9,2948.2,3.22226013]
[1731103675892,0.7921,2948.9,2948.0,0.0678292]
[1731103678104,0.7921,2948.9,2948.2,3.22226013]
[1731103678302,0.7921,2948.9,2948.3,0.06782299]
[1731103683075,0.7921,2948.9,2948.3,3.06782299]
[1731103683674,2.11329764,2951.3,2948.8,3.22226013]
[1731103683675,0.8142,2950.5,2948.8,3.22226013]
[1731103683885,0.8142,2950.5,2949.5,3.22226013]
[1731103684071,0.8142,2950.5,2949.8,3.22226013]
[1731103684278,0.8142,2950.5,2949.9,0.06778421]
[1731103685078,0.8142,2950.5,2950.1,3.22226013]
[1731103685245,0.8142,2950.5,2950.2,0.06778242]
[1731103685876,0.8142,2951.7,2950.2,3.06778242]
[1731103686077,0.8142,2951.7,2950.2,3.0]
[1731103689198,0.8142,2951.6,2949.9,3.0]
[1731103689357,0.38142,2951.5,2949.9,3.0]
[1731103689557,0.8142,2951.4,2949.9,3.0]
[1731103690077,0.8142,2951.4,2950.0,0.06778329]
[1731103693699,0.8142,2951.4,2950.0,0.06778326]
[1731103694185,0.8142,2951.4,2950.1,3.22226013]
[1731103694964,0.8142,2951.4,2950.2,3.0]
[1731103696325,0.8142,2951.4,2950.3,0.06777477]
[1731103696609,0.8142,2951.4,2950.2,3.0]
[1731103697242,0.8142,2951.4,2950.3,0.06777478]
[1731103698423,0.8142,2951.4,2950.2,3.0]
[1731103702676,0.8142,2951.4,2949.9,4.355567]
[1731103704603,0.8142,2951.4,2949.9,3.0]
[1731103704772,0.8089,2951.0,2949.2,0.36829096]
[1731103704970,0.8089,2950.9,2949.4,1.355802]
[1731103705199,0.8089,2950.9,2949.5,0.0677961]
[1731103705413,0.8189,2950.9,2949.5,0.0677961]
[1731103705615,0.8289,2950.9,2949.1,4.57819713]
[1731103705766,0.8089,2950.7,2949.1,3.22226013]
[1731103707317,0.8089,2950.6,2949.1,3.22226013]
[1731103708417,0.8189,2950.6,2949.1,3.22226013]
[1731103709315,0.8089,2950.4,2948.8,3.22226013]
[1731103709669,0.8089,2950.4,2948.9,0.06781054]
[1731103710173,0.8089,2950.3,2948.5,3.22226013]
[1731103710477,0.8089,2950.1,2948.5,3.22226013]
[1731103711468,0.7744,2950.0,2948.4,0.8089]
[1731103711895,0.7744,2950.0,2948.2,3.0]
[1731103712413,0.7744,2949.8,2948.1,3.22226013]
[1731103712911,0.7744,2949.8,2948.2,0.55]
[1731103713795,0.7744,2949.6,2948.2,0.55]
[1731103714108,0.7744,2949.6,2948.1,3.22226013]
[1731103714303,0.7744,2949.6,2948.0,0.55]
[1731103714498,0.7744,2949.6,2947.9,3.0]
[1731103715655,0.7744,2949.6,2948.0,0.06782846]
[1731103715851,0.7744,2949.6,2947.9,3.0]
[1731103716270,0.7744,2949.4,2947.8,3.22226013]
[1731103716449,0.7744,2949.2,2947.9,0.06782996]
[1731103721988,0.7744,2949.2,2947.5,1.356638]
[1731103721989,0.01,2949.0,2947.5,3.22226013]
[1731103722165,0.8096,2948.9,2947.5,3.22226013]
[1731103723258,0.8096,2948.9,2947.2,3.22226013]
[1731103723461,0.8096,2948.9,2947.3,0.0678459]
[1731103723661,0.8096,2948.9,2947.2,4.03186013]
[1731103723662,0.8196,2948.9,2947.2,4.03186013]
[1731103723858,0.8196,2948.9,2947.0,3.0]
[1731103723859,0.8096,2948.7,2947.0,3.0]
[1731103724089,0.8096,2948.7,2947.1,0.06785226]
[1731103724090,0.8096,2948.5,2947.1,0.06785226]
[1731103724448,0.8096,2948.5,2946.9,3.22226013]
[1731103724648,0.8096,2948.5,2947.0,0.06785526]
[1731103725154,0.8096,2948.5,2947.0,0.06785464]
[1731103725482,0.8096,2948.3,2946.9,3.22226013]
[1731103725690,0.8096,2948.3,2947.2,3.22226013]
[1731103725860,0.8096,2948.3,2947.5,3.22226013]
[1731103727168,0.8096,2948.3,2947.6,0.06783947]
[1731103727758,0.8096,2948.3,2947.5,3.22226013]
[1731103728259,0.8096,2948.3,2947.6,0.06783948]
[1731103728892,0.8096,2948.3,2947.5,3.22226013]
[1731103729609,0.8096,2948.3,2947.3,3.0]
[1731103729777,0.8096,2948.3,2947.2,3.22226013]
[1731103730176,0.8096,2948.3,2947.0,3.0]
[1731103730437,0.8096,2948.3,2947.1,0.06785105]
[1731103730776,0.8096,2948.3,2947.2,3.22226013]
[1731103730992,0.8096,2948.3,2947.3,0.06784685]
[1731103731768,0.8096,2948.3,2947.5,3.22226013]
[1731103731965,0.8096,2948.3,2947.6,0.06783971]
[1731103732190,0.8096,2948.3,2947.5,3.22226013]
[1731103734891,0.8096,2948.3,2946.5,1.357091]
[1731103735220,0.8096,2948.3,2947.0,3.0]
[1731103735378,0.8096,2948.3,2947.1,0.06785285]
[1731103737385,0.8096,2948.3,2946.7,3.06785421]
[1731103737605,0.8096,2948.3,2946.7,0.06785421]
[1731103738994,0.8096,2948.3,2946.7,0.06785742]
[1731103740379,0.8096,2948.3,2946.9,3.22226013]
[1731103740594,0.8096,2948.3,2946.7,0.06785742]
[1731103740595,0.8096,2948.3,2947.2,3.22226013]
[1731103740952,0.8096,2948.3,2947.4,0.55]
[1731103741093,0.8096,2948.3,2947.5,3.22226013]
[1731103741784,0.8096,2948.3,2947.2,3.22226013]
[1731103741977,0.8096,2948.3,2947.3,3.55]
[1731103742904,0.8096,2948.3,2947.4,0.06784179]
[1731103743224,0.8096,2948.3,2947.3,3.55]
[1731103743586,0.8096,2948.3,2947.4,0.06784088]
[1731103744048,0.8096,2948.3,2947.3,3.55]
[1731103745651,0.8096,2948.3,2947.5,3.22226013]
[1731103745823,0.8096,2948.3,2947.6,0.06783977]
[1731103745982,0.8096,2948.3,2947.3,0.55]
[1731103746182,0.8096,2948.3,2947.4,3.22226013]
[1731103746579,0.8096,2948.3,2947.5,0.61783977]
[1731103746990,0.8096,2948.3,2947.5,3.61783977]
[1731103747725,0.8096,2948.3,2947.7,3.22226013]
[1731103747935,0.40066601,2949.7,2948.0,3.22226013]
[1731103748265,0.7641,2949.5,2948.4,0.55]
[1731103748401,0.7641,2949.5,2948.6,3.77226013]
[1731103751925,0.7641,2949.5,2948.1,4.46295321]
[1731103751926,0.7641,2949.5,2948.9,3.22226013]
[1731103752126,0.7641,2949.5,2949.2,3.22226013]
[1731103752359,0.01,2951.0,2949.3,0.06780251]
[1731103752559,0.752,2950.8,2949.3,0.06780251]
[1731103754317,0.752,2950.8,2949.5,3.22226013]
[1731103754570,0.752,2950.8,2949.6,0.61779376]
[1731103755844,0.752,2950.8,2949.6,0.55]
[1731103756548,0.752,2950.8,2949.5,3.22226013]
[1731103757727,0.752,2950.8,2949.4,0.55]
[1731103758338,0.752,2950.8,2949.3,3.0]
[1731103758569,0.8,2950.6,2949.4,0.06779742]
[1731103758779,0.8,2950.6,2949.4,0.55]
[1731103759131,0.8,2950.6,2949.4,0.61779426]
[1731103759333,0.8,2950.6,2949.5,0.803]
[1731103761568,0.8,2950.6,2949.4,0.55]
[1731103763208,0.8,2950.6,2949.5,0.0677944]
[1731103764183,0.8,2950.6,2949.6,0.55]
[1731103764336,0.8,2950.6,2949.7,0.81858723]
[1731103765176,0.8,2950.6,2950.1,3.22226013]
[1731103765404,0.7878,2951.9,2950.3,0.55]
[1731103765589,0.7878,2951.9,2950.4,0.06777455]
[1731103765877,3.22226013,2951.8,2950.2,3.7508]
[1731103766076,0.7878,2951.6,2950.2,3.0]
[1731103766586,0.7878,2951.6,2950.0,0.55]
[1731103769189,0.7878,2951.3,2949.7,0.55]
[1731103769393,0.7878,2951.3,2949.9,3.22226013]
[1731103769692,0.7878,2951.3,2950.0,0.06778261]
[1731103770667,0.7878,2951.3,2949.9,3.22226013]
[1731103770865,0.7878,2951.3,2950.2,3.22226013]
[1731103771094,0.7878,2951.3,2950.3,0.06777778]
[1731103771568,0.7878,2951.3,2950.2,3.22226013]
[1731103773098,0.7878,2951.3,2950.0,3.55]
[1731103774796,0.7878,2951.3,2949.6,3.22226013]
[1731103774959,0.7957,2951.1,2949.6,3.22226013]
[1731103776005,0.7957,2951.1,2949.7,0.0677872]
[1731103776421,0.7957,2951.1,2949.6,3.22226013]
[1731103776568,0.7957,2951.1,2949.6,4.57803413]
[1731103778013,0.7957,2951.1,2949.7,0.06778835]
[1731103778257,0.7957,2951.1,2949.6,4.57803413]